bitfinex-derivatives/quotes_SOLF0:USTF0_20240815
["timestamp","ask_amount","ask_price","bid_price","bid_amount"]
[1723725401965,1.2315,144.75,144.69,0.04526539]
[1723725402440,3.4551,144.71,144.69,0.04526539]
[1723725402641,1.2315,144.75,144.69,0.04526539]
[1723725403039,3.4544,144.74,144.69,0.04526539]
[1723725403232,7.9414,144.76,144.69,0.04526539]
[1723725403438,1.2814,144.76,144.69,0.04526539]
[1723725404034,3.4538,144.76,144.69,0.04526539]
[1723725404437,3.4538,144.76,144.72,3.4546]
[1723725404634,51.0756,144.81,144.7,49.81]
[1723725404833,53.6029,144.81,144.73,3.4543]
[1723725405138,53.6029,144.81,144.7,49.81]
[1723725405437,0.30315072,144.8,144.76,0.05032077]
[1723725405656,3.4535,144.78,144.76,0.05032077]
[1723725405836,53.6029,144.81,144.76,0.05032077]
[1723725406037,0.30315277,144.8,144.76,0.05032077]
[1723725406244,53.6029,144.81,144.76,0.05032077]
[1723725406440,3.7929,144.81,144.76,0.05032077]
[1723725406647,6.66,144.83,144.76,0.05032077]
[1723725406850,1.3216,144.82,144.76,0.05032077]
[1723725407141,3.4535,144.77,144.76,0.05032077]
[1723725407351,49.81,144.79,144.65,51.1682]
[1723725407542,6.66,144.78,144.65,51.1682]
[1723725407848,49.81,144.76,144.65,51.1682]
[1723725408144,49.81,144.76,144.64,7.9445]
[1723725408145,3.4558,144.68,144.64,6.66]
[1723725408349,49.81,144.76,144.64,6.66]
[1723725408651,49.81,144.76,144.6,51.1682]
[1723725408652,49.81,144.71,144.6,51.1682]
[1723725408843,0.05032077,144.67,144.65,0.05072408]
[1723725409044,0.05032077,144.67,144.65,3.50702408]
[1723725409344,0.05032077,144.67,144.65,0.05072408]
[1723725410838,3.4562,144.66,144.65,0.05072408]
[1723725411246,0.05032077,144.67,144.65,0.05072408]
[1723725412441,0.05032077,144.67,144.66,3.4562]
[1723725412846,7.8848,144.76,144.69,3.4554]
[1723725413443,3.4539,144.76,144.72,3.4546]
[1723725413751,2.5857,144.78,144.68,49.81]
[1723725414648,34.598,144.89,144.77,49.81]
[1723725414844,1.2591,144.87,144.79,49.81]
[1723725415247,0.30277213,144.86,144.79,49.81]
[1723725415450,0.30277213,144.86,144.8,3.4526]
[1723725415640,2.5289,144.88,144.81,49.81]
[1723725415837,1.251,144.88,144.81,49.81]
[1723725416267,1.2703,144.92,144.84,49.81]
[1723725416446,1.2703,144.92,144.81,56.33]
[1723725417048,3.4509,144.88,144.81,6.52]
[1723725417245,1.2703,144.92,144.83,0.05196641]
[1723725417857,49.81,144.91,144.83,0.05196641]
[1723725418947,49.81,144.91,144.8,6.52]
[1723725419557,49.81,144.91,144.81,53.2626]
[1723725419758,49.81,144.91,144.86,0.048965]
[1723725419952,1.2703,144.92,144.86,0.048965]
[1723725421745,49.81,144.88,144.78,6.52]
[1723725421951,49.81,144.86,144.74,49.81]
[1723725422182,1.3126,144.85,144.74,49.81]
[1723725422551,1.2703,144.92,144.79,49.81]
[1723725422756,49.81,144.91,144.79,6.52]
[1723725423558,0.04879191,144.87,144.84,0.04377275]
[1723725423753,3.49999191,144.87,144.84,0.04377275]
[1723725423950,56.33,144.86,144.6,49.81]
[1723725424155,49.81,144.83,144.71,51.1484]
[1723725424355,49.81,144.84,144.71,51.1484]
[1723725424761,1.3141,144.83,144.71,51.1484]
[1723725425059,1.3141,144.83,144.75,49.81]
[1723725425360,1.3465,144.85,144.75,49.81]
[1723725425658,1.3465,144.85,144.76,3.4537]
[1723725425857,1.3465,144.85,144.75,49.81]
[1723725426155,0.05258822,144.78,144.76,0.04389171]
[1723725426361,1.3465,144.85,144.76,0.04389171]
[1723725426560,56.724,144.91,144.79,49.81]
[1723725426752,2.4848,144.94,144.81,49.81]
[1723725427054,2.4848,144.94,144.84,49.81]
[1723725427257,3.4502,144.92,144.87,3.451]
[1723725427462,2.4848,144.94,144.87,3.451]
[1723725427757,2.4848,144.94,144.86,56.33]
[1723725428148,0.04014953,144.91,144.88,0.05282644]
[1723725429157,3.4504,144.9,144.88,0.05282644]
[1723725429353,0.04014953,144.91,144.88,0.05282644]
[1723725429558,0.04014953,144.91,144.89,49.81]
[1723725429761,8.203,144.99,144.9,6.52]
[1723725429968,6.914,144.99,144.92,49.81]
[1723725430169,10.3625,144.99,144.94,3.4493]
[1723725430464,8.2474,145.06,144.92,49.81]
[1723725430657,3.4495,144.94,144.9,3.4504]
[1723725430855,6.914,145.01,144.89,6.52]
[1723725431058,6.914,145.01,144.88,56.33]
[1723725431360,6.914,145.01,144.92,49.81]
[1723725431564,6.914,145.01,144.98,0.04491705]
[1723725431755,3.4483,144.99,144.98,0.04491705]
[1723725431952,6.914,145.01,144.98,0.04491705]
[1723725432159,6.914,145.01,144.97,49.81]
[1723725432356,6.914,145.01,145.0,3.4481]
[1723725432584,6.52,145.11,144.99,49.81]
[1723725432865,6.914,145.12,145.01,49.81]
[1723725433060,6.914,145.12,144.98,0.04804985]
[1723725433061,49.81,145.09,144.98,0.04804985]
[1723725433258,13.754,145.12,144.99,49.81]
[1723725433452,49.81,145.1,144.98,0.04804985]
[1723725433658,49.81,145.07,144.94,49.81]
[1723725433863,1.2937,145.06,144.94,49.81]
[1723725434164,49.81,145.02,144.89,49.81]
[1723725434354,2.5899,145.01,144.89,49.81]
[1723725434757,2.5899,145.01,144.9,3.4503]
[1723725435061,2.5899,145.01,144.94,0.049041]
[1723725435255,3.4484,144.99,144.94,49.859041]
[1723725435461,6.8883,145.17,144.96,49.81]
[1723725435660,1.2449,145.09,144.99,49.81]
[1723725435862,1.3205,145.08,144.99,49.81]
[1723725436467,49.81,145.07,144.94,49.81]
[1723725436866,3.4471,145.04,145.03,0.04519508]
[1723725437173,53.24943992,145.07,144.94,49.81]
[1723725437471,49.81,145.04,144.91,49.81]
[1723725437961,49.81,145.04,144.94,49.81]
[1723725438165,6.84,145.06,144.89,6.84]
[1723725438166,6.84,145.06,144.97,49.81]
[1723725438357,6.84,145.06,144.97,53.2586]
[1723725438571,6.84,145.06,144.97,49.81]
[1723725438864,6.84,145.06,144.96,0.05077673]
[1723725439068,0.04519508,144.99,144.97,3.4486]
[1723725439270,0.04519508,144.99,144.97,49.81]
[1723725439472,0.04519508,144.99,144.98,3.4485]
[1723725439989,3.4472,145.04,144.99,3.4481]
[1723725440172,1.3205,145.08,144.97,49.81]
[1723725440573,0.04519508,145.0,144.98,3.4484]
[1723725440968,1.3205,145.08,144.98,3.4484]
[1723725441273,1.3205,145.08,144.99,49.81]
[1723725441566,0.04519508,145.0,144.99,53.2583]
[1723725441874,1.3205,145.08,144.99,49.81]
[1723725442078,56.6977,145.18,145.05,49.81]
[1723725442270,0.30023155,145.17,145.05,49.81]
[1723725442568,3.4455,145.11,145.06,3.4465]
[1723725442770,1.357,145.17,145.05,49.81]
[1723725442975,1.357,145.17,145.08,49.81]
[1723725443373,1.357,145.17,145.1,49.81]
[1723725443768,1.357,145.17,145.08,49.81]
[1723725444070,3.4451,145.13,145.08,53.256]
[1723725444270,49.81,145.26,145.11,49.81]
[1723725444572,1.3576,145.2,145.13,49.81]
[1723725444771,6.84,145.19,145.07,0.0493118]
[1723725444975,6.84,145.18,145.09,49.81]
[1723725445164,3.4449,145.14,145.09,49.81]
[1723725445471,6.84,145.18,145.06,49.81]
[1723725445773,6.84,145.18,145.06,53.2564]
[1723725445975,6.84,145.17,145.11,49.81]
[1723725446274,1.3576,145.2,145.14,49.81]
[1723725446497,1.3576,145.2,145.12,0.05241312]
[1723725446966,6.84,145.2,145.12,0.05241312]
[1723725447163,3.4441,145.17,145.12,3.49751312]
[1723725447368,49.81,145.24,145.11,49.81]
[1723725447567,49.81,145.23,145.09,49.81]
[1723725447772,49.81,145.23,145.11,49.81]
[1723725448377,3.4437,145.19,145.13,3.49181034]
[1723725448580,6.84,145.18,145.13,0.04711034]
[1723725448872,6.914,145.17,145.13,0.04711034]
[1723725449269,49.81,145.21,145.07,49.81]
[1723725449470,6.84,145.2,145.09,3.4459]
[1723725449674,6.84,145.2,145.07,49.81]
[1723725450107,6.84,145.2,144.99,6.84]
[1723725450108,49.81,145.19,145.14,0.05100457]
[1723725450283,49.81,145.16,145.04,49.81]
[1723725451971,3.4459,145.1,145.04,53.257]
[1723725452170,2.6356,145.15,145.09,0.04561347]
[1723725452377,0.04979072,145.11,145.09,0.04561347]
[1723725452773,0.04979072,145.11,145.09,49.85561347]
[1723725453080,1.2858,145.22,145.1,49.81]
[1723725453277,1.2858,145.22,145.09,49.81]
[1723725453278,56.724,145.27,145.15,49.81]
[1723725453478,56.724,145.27,145.18,3.4436]
[1723725453689,6.914,145.27,145.15,49.81]
[1723725453881,6.914,145.29,145.15,49.81]
[1723725454078,3.4428,145.23,145.15,49.81]
[1723725454276,6.914,145.29,145.16,6.84]
[1723725454472,3.4421,145.25,145.16,8.0872]
[1723725454673,6.854,145.29,145.16,8.0872]
[1723725454881,9.4168,145.31,145.16,1.2472]
[1723725454882,56.604,145.27,145.16,1.2472]
[1723725455187,49.81,145.25,145.21,0.05047899]
[1723725455373,6.794,145.27,145.21,0.05047899]
[1723725455574,3.4428,145.22,145.21,0.05047899]
[1723725455973,6.794,145.28,145.21,0.05047899]
[1723725456176,6.794,145.28,145.18,49.81]
[1723725456378,56.604,145.27,145.15,49.81]
[1723725456576,3.4439,145.18,145.15,49.81]
[1723725456769,56.604,145.27,145.15,49.81]
[1723725456973,3.36192641,145.26,145.23,9.028e-05]
[1723725457207,56.604,145.23,145.1,51.1246]
[1723725457384,10.9902,145.22,145.1,51.1246]
[1723725457578,3.4453,145.12,145.1,51.0646]
[1723725457879,49.81,145.19,145.06,1.304]
[1723725458075,49.81,145.19,145.05,49.81]
[1723725458274,6.914,145.21,145.05,49.81]
[1723725458471,3.7902,145.22,145.1,49.81]
[1723725458876,0.04683918,145.14,145.11,0.0457981]
[1723725459072,3.7902,145.22,145.13,49.81]
[1723725460189,49.81,145.21,145.1,49.81]
[1723725460679,49.81,145.21,145.09,1.3559]
[1723725460680,3.4451,145.13,145.09,1.3559]
[1723725460880,49.81,145.21,145.09,1.3559]
[1723725461080,3.7902,145.22,145.1,49.81]
[1723725461386,7.2,145.21,145.1,49.81]
[1723725461784,7.2,145.21,145.1,49.85503511]
[1723725462282,3.7902,145.22,145.12,49.81]
[1723725462486,3.7902,145.22,145.14,49.81]
[1723725462783,3.4436,145.19,145.14,49.81]
[1723725462972,14.114,145.25,145.14,49.81]
[1723725463176,3.9633,145.29,145.11,1.2637]
[1723725463177,6.914,145.28,145.17,49.8555806]
[1723725463386,3.4424,145.24,145.19,49.81]
[1723725463588,2.6386,145.29,145.19,49.81]
[1723725463774,3.4435,145.19,145.18,1.3351]
[1723725463978,49.81,145.27,145.18,1.3351]
[1723725464194,49.81,145.27,145.14,57.01]
[1723725464385,49.81,145.27,145.23,0.04445807]
[1723725464583,6.8831,145.28,145.23,0.04445807]
[1723725464788,3.4424,145.24,145.23,0.04445807]
[1723725465189,7.2,145.29,145.19,49.81]
[1723725465393,7.2,145.29,145.22,49.81]
[1723725465688,49.81,145.37,145.24,49.81]
[1723725465886,3.4413,145.29,145.24,49.81]
[1723725466488,49.81,145.35,145.23,0.04945865]
[1723725466683,49.81,145.35,145.22,49.81]
[1723725467989,3.4412,145.29,145.28,0.04479694]
[1723725470994,49.81,145.35,145.28,0.04479694]
[1723725471232,7.18,145.37,145.28,0.04479694]
[1723725471233,56.99,145.37,145.28,0.04479694]
[1723725471493,3.4405,145.32,145.28,0.04479694]
[1723725471694,3.4405,145.32,145.28,2.60999694]
[1723725471989,8.2668,145.39,145.28,52.3752]
[1723725472495,8.2668,145.39,145.29,1.2488]
[1723725472686,8.2668,145.39,145.29,1.29322779]
[1723725472887,3.4401,145.34,145.29,1.29322779]
[1723725473094,3.4401,145.34,145.29,1.2488]
[1723725473399,3.4404,145.33,145.29,1.2488]
[1723725473583,1.3528,145.39,145.29,1.2488]
[1723725473787,1.3528,145.39,145.3,0.04594214]
[1723725473989,3.44,145.35,145.3,0.04594214]
[1723725474600,3.44,145.35,145.3,3.4409]
[1723725474893,49.81,145.42,145.31,49.81]
[1723725475094,49.81,145.42,145.31,49.86067631]
[1723725475296,3.4398,145.35,145.31,49.86067631]
[1723725475498,49.81,145.42,145.31,49.86067631]
[1723725475688,3.4397,145.36,145.31,53.2507]
[1723725475886,3.9211,145.44,145.31,49.81]
[1723725476091,49.81,145.42,145.35,0.05107022]
[1723725476295,49.81,145.37,145.28,1.294]
[1723725476490,49.81,145.37,145.13,6.8898]
[1723725476491,2.5995,145.36,145.24,49.81]
[1723725476688,3.4408,145.31,145.26,3.4417]
[1723725476892,9.7795,145.36,145.24,49.81]
[1723725477092,9.7795,145.36,145.2,8.5199]
[1723725477093,7.18,145.36,145.27,49.81]
[1723725477287,51.0916,145.4,145.29,53.251]
[1723725477691,54.48355258,145.4,145.19,3.50068224]
[1723725477892,0.04448465,145.33,145.3,0.05235563]
[1723725478294,3.4407,145.31,145.3,0.05235563]
[1723725478487,49.81,145.35,145.24,49.81]
[1723725478696,56.99,145.35,145.24,49.81]
[1723725479098,0.04588243,145.32,145.29,0.04611027]
[1723725479401,3.4409,145.3,145.29,0.04611027]
[1723725479596,59.5106,145.31,145.2,1.3428]
[1723725479792,49.81,145.28,145.17,49.81]
[1723725480395,3.4425,145.24,145.19,3.4435]
[1723725480598,49.81,145.3,145.21,0.04737029]
[1723725480896,3.4415,145.28,145.23,3.4426]
[1723725481105,0.05168999,145.23,145.21,49.85737029]
[1723725481309,0.05168999,145.23,145.21,49.81]
[1723725481627,1.2805,145.31,145.21,49.81]
[1723725481790,1.2805,145.31,145.19,49.81]
[1723725482000,3.4428,145.22,145.19,49.81]
[1723725482195,3.4428,145.22,145.21,0.04588393]
[1723725482692,3.4427,145.23,145.21,0.04588393]
[1723725482890,49.81,145.3,145.17,51.1115]
[1723725483293,3.4427,145.23,145.21,0.04785559]
[1723725483496,49.81,145.3,145.21,0.04785559]
[1723725483898,49.81,145.3,145.17,51.1115]
[1723725484100,49.81,145.3,145.18,3.4436]
[1723725484307,49.81,145.3,145.17,51.1115]
[1723725484495,49.81,145.3,145.24,0.04617143]
[1723725484928,3.4421,145.25,145.24,0.04617143]
[1723725485506,1.2805,145.31,145.24,0.04617143]
[1723725485890,3.4421,145.25,145.24,0.04617143]
[1723725488497,50.10960568,145.25,145.08,27.52]
[1723725488710,49.81,145.22,145.09,2.4923]
[1723725488903,3.4444,145.16,145.11,3.4454]
[1723725489106,8.5332,145.21,145.09,2.4923]
[1723725489603,0.04950276,145.17,145.14,0.04987534]
[1723725489911,3.4445,145.15,145.14,0.04987534]
[1723725490101,10.7245,145.15,145.14,0.04987534]
[1723725490404,3.4461,145.09,145.04,2.5999]
[1723725490704,49.81,145.14,145.03,49.81]
[1723725490916,3.42591316,145.13,145.03,49.81]
[1723725491300,49.81,145.12,145.01,49.81]
[1723725491703,0.05069195,145.09,145.07,0.04440991]
[1723725491907,7.28,145.08,145.07,0.04440991]
[1723725492111,3.4474,145.03,144.98,49.81]
[1723725492404,0.05069195,145.09,144.98,49.81]
[1723725492708,0.05069195,145.09,144.97,1.3565]
[1723725492709,6.914,145.09,144.9,7.28]
[1723725492911,49.81,144.99,144.86,49.81]
[1723725493207,49.81,145.03,144.89,49.81]
[1723725493401,49.81,145.01,144.87,1.3124]
[1723725493605,0.04398527,144.94,144.91,0.04398274]
[1723725493799,27.54,145.08,144.91,49.85398274]
[1723725494007,0.30115496,145.07,144.96,49.81]
[1723725494302,49.81,145.08,144.96,49.81]
[1723725494703,49.81,145.08,144.96,53.259]
[1723725494907,49.81,145.08,144.96,49.81]
[1723725495311,49.81,145.08,144.96,53.2588]
[1723725495512,0.05181053,145.03,145.01,0.05067659]
[1723725495702,3.4478,145.02,145.01,0.05067659]
[1723725496333,3.4478,145.02,144.93,51.1565]
[1723725496334,3.4485,144.98,144.93,1.3465]
[1723725496702,49.81,145.03,144.93,1.3465]
[1723725497103,49.85578518,145.03,144.93,1.3465]
[1723725497308,0.04578518,145.03,144.93,1.3465]
[1723725497507,7.62,145.05,144.93,1.3465]
[1723725497707,7.62,145.05,144.97,0.04523446]
[1723725497908,0.04872983,144.99,144.97,0.04523446]
[1723725498508,57.43,145.06,144.97,0.04523446]
[1723725499007,3.4475,145.03,144.97,3.49393446]
[1723725499205,49.81,145.11,144.97,49.85523446]
[1723725499421,49.81,145.11,145.0,49.81]
[1723725499715,7.62,145.13,145.02,49.81]
[1723725500211,57.43,145.13,145.0,49.81]
[1723725500410,49.81,145.1,144.98,1.2947]
[1723725500912,7.62,145.13,145.06,0.04903598]
[1723725500913,49.81,145.08,145.06,0.04903598]
[1723725501212,7.62,145.07,144.96,1.2436]
[1723725501402,49.81,145.11,144.97,49.81]
[1723725501606,3.4466,145.07,145.01,3.4478]
[1723725501911,7.62,145.1,145.0,49.81]
[1723725502110,7.62,145.1,145.04,3.4471]
[1723725502415,0.05293816,145.06,145.04,0.04733661]
[1723725503111,7.62,145.18,145.05,49.81]
[1723725503413,7.62,145.18,145.09,49.81]
[1723725503612,2.4719,145.21,145.09,49.81]
[1723725504006,122.21610889,145.23,145.11,49.81]
[1723725504206,0.04692978,145.15,145.11,49.81]
[1723725504611,0.04692978,145.15,145.12,3.4452]
[1723725504813,0.04692978,145.15,145.11,49.81]
[1723725505012,122.21610889,145.23,145.16,0.05122812]
[1723725505218,3.444,145.17,145.16,0.05122812]
[1723725505516,57.43,145.23,145.16,0.05122812]
[1723725505720,3.444,145.17,145.11,49.81]
[1723725506429,3.444,145.17,145.13,0.04888148]
[1723725506919,0.0481655,145.15,145.13,0.04888148]
[1723725507313,3.4446,145.15,145.1,3.4456]
[1723725507515,49.81,145.21,145.09,49.81]
[1723725507719,7.62,145.23,145.06,7.62]
[1723725507720,0.04653479,145.15,145.13,0.0468972]
[1723725507918,3.4447,145.14,145.13,0.0468972]
[1723725508223,49.81,145.19,145.06,49.81]
[1723725508415,0.04791545,145.15,145.12,0.04539587]
[1723725508911,3.4438,145.19,145.14,3.4447]
[1723725509112,8.8818,145.24,145.11,49.81]
[1723725509316,0.04637613,145.15,145.14,3.4447]
[1723725509516,8.8818,145.24,145.14,3.4447]
[1723725509715,3.4435,145.2,145.12,1.2297]
[1723725509916,3.4435,145.2,145.15,3.4444]
[1723725510117,3.4436,145.19,145.12,1.2297]
[1723725510422,8.8818,145.24,145.12,1.2297]
[1723725510823,0.05064725,145.17,145.14,0.04512336]
[1723725511317,1.2618,145.24,145.14,49.81]
[1723725511521,1.2618,145.24,145.17,3.4439]
[1723725511824,3.4429,145.22,145.14,49.8536636]
[1723725512021,0.04878311,145.2,145.18,3.4438]
[1723725512323,0.04878311,145.2,145.17,0.04503749]
[1723725512824,2.6501,145.32,145.18,49.81]
[1723725513124,2.6501,145.32,145.21,49.81]
[1723725513319,3.4413,145.29,145.21,49.81]
[1723725513521,2.6501,145.32,145.24,3.4423]
[1723725513921,3.4413,145.29,145.24,3.4423]
[1723725514222,0.04583291,145.29,145.27,0.04490144]
[1723725514619,0.04583291,145.29,145.22,1.2604]
[1723725514820,0.04583291,145.29,145.27,0.05230524]
[1723725515017,0.04583291,145.29,145.27,3.4415]
[1723725515221,1.2832,145.36,145.28,49.81]
[1723725515421,3.4402,145.34,145.28,49.81]
[1723725515624,2.6319,145.38,145.28,49.81]
[1723725516423,3.4397,145.36,145.28,49.81]
[1723725516620,2.6319,145.38,145.28,49.81]
[1723725516823,49.81,145.41,145.28,49.81]
[1723725517018,3.4394,145.37,145.32,0.04673424]
[1723725517224,49.81,145.41,145.32,0.04673424]
[1723725517523,3.4401,145.34,145.32,0.04673424]
[1723725517726,49.81,145.38,145.25,51.0993]
[1723725518024,3.4395,145.36,145.32,0.04613663]
[1723725518223,57.43,145.4,145.32,0.04613663]
[1723725518424,49.81,145.42,145.32,0.04613663]
[1723725518932,49.81,145.42,145.3,49.81]
[1723725519117,49.81,145.4,145.3,49.81]
[1723725519326,49.81,145.4,145.36,0.04658749]
[1723725519731,3.4393,145.37,145.36,0.04658749]
[1723725521327,3.9806,145.44,145.36,0.04658749]
[1723725521723,3.9806,145.44,145.36,3.48598749]
[1723725522929,3.4384,145.41,145.36,0.04658749]
[1723725523318,53.2484,145.41,145.36,0.04658749]
[1723725523626,3.4389,145.39,145.36,0.04658749]
[1723725523824,3.9806,145.44,145.36,0.04658749]
[1723725523825,49.81,145.43,145.36,0.04658749]
[1723725524025,3.4387,145.4,145.36,0.04658749]
[1723725524426,49.81,145.43,145.36,0.04658749]
[1723725524637,3.9806,145.44,145.36,0.04658749]
[1723725525428,7.98,145.47,145.36,0.04658749]
[1723725525632,51.40412933,145.46,145.36,0.04658749]
[1723725525930,51.1064,145.46,145.36,0.04658749]
[1723725526117,51.1064,145.46,145.32,49.81]
[1723725526118,49.81,145.43,145.32,49.81]
[1723725526523,49.81,145.43,145.3,49.81]
[1723725526720,3.4392,145.38,145.32,3.4403]
[1723725526925,3.4392,145.38,145.3,49.81]
[1723725527126,49.81,145.45,145.32,49.81]
[1723725527525,49.81,145.43,145.32,49.81]
[1723725527718,49.81,145.43,145.34,0.04518886]
[1723725528353,49.81,145.43,145.3,49.81]
[1723725528631,49.81,145.43,145.37,0.04978486]
[1723725529629,1.2964,145.46,145.37,0.04978486]
[1723725529829,4.81449799,145.46,145.37,0.04978486]
[1723725530132,49.81,145.45,145.34,49.81]
[1723725530332,49.81,145.45,145.4,0.04604656]
[1723725530537,49.81,145.45,145.32,49.81]
[1723725531124,49.81,145.42,145.32,49.81]
[1723725531828,0.05126705,145.38,145.36,0.04467437]
[1723725536344,0.05126705,145.38,145.37,3.4393]
[1723725536535,0.05126705,145.38,145.36,0.04467437]
[1723725537729,11.46801307,145.38,145.27,2.5395]
[1723725538054,3.4399,145.35,145.29,3.441]
[1723725538226,8.2401,145.45,145.32,49.81]
[1723725538425,9.261,145.44,145.34,3.4398]
[1723725538735,49.81,145.48,145.36,49.81]
[1723725539040,0.04530568,145.4,145.38,0.04800273]
[1723725539427,0.04530568,145.4,145.38,3.48690273]
[1723725539632,0.04530568,145.4,145.38,0.04800273]
[1723725539833,3.4377,145.44,145.35,52.4453]
[1723725540039,3.4377,145.44,145.38,3.4389]
[1723725540338,0.04922821,145.4,145.38,0.0438061]
[1723725540542,0.04922821,145.4,145.39,3.4388]
[1723725540734,49.81,145.51,145.38,0.0438061]
[1723725540935,1.244,145.5,145.41,49.81]
[1723725541131,4.67427367,145.5,145.41,49.81]
[1723725541328,1.244,145.5,145.41,49.81]
[1723725541537,1.244,145.5,145.42,3.438]
[1723725541746,3.4364,145.5,145.43,49.81]
[1723725541930,1.2244,145.54,145.46,49.81]
[1723725542134,9.204,145.55,145.46,53.2471]
[1723725542135,0.04549723,145.47,145.46,53.2471]
[1723725542385,51.0344,145.58,145.46,57.77]
[1723725542386,1.2244,145.58,145.46,57.77]
[1723725542641,1.2244,145.58,145.5,3.4361]
[1723725542842,3.4349,145.56,145.5,3.4361]
[1723725543029,4.74801761,145.58,145.49,49.81]
[1723725543231,1.3009,145.6,145.49,49.81]
[1723725543437,1.3009,145.6,145.52,49.81]
[1723725543641,1.3009,145.6,145.49,49.81]
[1723725543943,3.4355,145.53,145.52,0.04696799]
[1723725544245,61.21590339,145.53,145.39,1.3018]
[1723725544545,49.81,145.49,145.39,1.3018]
[1723725544734,49.81,145.49,145.41,3.4383]
[1723725544929,49.81,145.49,145.39,1.3018]
[1723725545130,49.81,145.49,145.37,49.81]
[1723725545336,1.2553,145.52,145.34,49.81]
[1723725545337,49.81,145.46,145.34,49.81]
[1723725545549,3.4382,145.42,145.34,49.81]
[1723725545737,7.96,145.44,145.34,49.81]
[1723725545947,0.04896902,145.45,145.34,49.81]
[1723725546138,7.96,145.44,145.39,0.04797365]
[1723725546543,0.04389666,145.41,145.39,0.04797365]
[1723725547241,0.04389666,145.41,145.35,3.4395]
[1723725547242,0.04389666,145.41,145.3,51.1118]
[1723725547540,7.96,145.4,145.27,49.81]
[1723725547759,7.96,145.4,145.3,49.81]
[1723725548051,49.81,145.46,145.35,49.81]
[1723725548346,49.81,145.46,145.36,4.7398]
[1723725548540,49.81,145.46,145.36,1.3004]
[1723725548936,0.04501334,145.42,145.39,0.05176445]
[1723725549139,58.01,145.41,145.25,49.81]
[1723725549345,49.81,145.37,145.26,3.4418]
[1723725549540,49.81,145.37,145.25,49.81]
[1723725549938,3.44973508,145.41,145.25,49.81]
[1723725550240,1.3109,145.43,145.27,49.81]
[1723725550241,49.81,145.39,145.27,49.81]
[1723725550546,8.2,145.4,145.29,49.81]
[1723725550737,49.81,145.44,145.32,49.81]
[1723725550949,9.4558,145.48,145.34,49.81]
[1723725551254,9.4558,145.48,145.36,49.81]
[1723725551637,9.4558,145.48,145.39,49.81]
[1723725551844,3.4371,145.47,145.39,49.81]
[1723725552038,0.05252362,145.43,145.41,0.04510636]
[1723725552239,0.05252362,145.43,145.41,49.85510636]
[1723725552652,8.22,145.51,145.41,49.81]
[1723725553078,0.04962925,145.43,145.42,3.4381]
[1723725553240,1.3437,145.6,145.42,51.1004]
[1723725553541,49.81,145.57,145.44,49.81]
[1723725553745,3.4366,145.49,145.43,1.3396]
[1723725554146,49.81,145.55,145.44,3.4375]
[1723725554344,49.81,145.55,145.43,1.3396]
[1723725554648,0.04485449,145.47,145.46,3.4371]
[1723725554855,3.4353,145.54,145.46,49.81]
[1723725555039,3.4353,145.54,145.43,1.3396]
[1723725555241,0.04383161,145.48,145.47,3.4369]